[Event "Live Chess"]
[Site "Chess.com"]
[Date "2023.05.21"]
[Round "-"]
[White "Rusty_Bridges"]
[Black "Tiltador"]
[Result "1-0"]
[WhiteElo "1505"]
[BlackElo "864"]
[TimeControl "300"]
[EndTime "3:35:55 PDT"]
[Termination "Rusty_Bridges won by resignation"]

1. e4 {[%clk 0:04:57.8]} 1... d5 {[%clk 0:04:57.6]} 2. exd5 {[%clk 0:04:56.6]}
2... Qxd5 {[%clk 0:04:55.9]} 3. Nc3 {[%clk 0:04:56.5]} 3... Qe6+ {[%clk
0:04:54.4]} 4. Be2 {[%clk 0:04:54.6]} 4... Nc6 {[%clk 0:04:53.2]} 5. Nf3 {[%clk
0:04:53.8]} 5... f6 {[%clk 0:04:52]} 6. O-O {[%clk 0:04:52.6]} 6... g6 {[%clk
0:04:49.6]} 7. Re1 {[%clk 0:04:51.5]} 7... Bg7 {[%clk 0:04:48.3]} 8. Bb5 {[%clk
0:04:49.7]} 8... Qd6 {[%clk 0:04:45.4]} 9. Ne4 {[%clk 0:04:45.8]} 9... Qb4
{[%clk 0:04:37]} 10. a4 {[%clk 0:04:41.3]} 10... e5 {[%clk 0:04:30.5]} 11. d3
{[%clk 0:04:13.8]} 11... Bd7 {[%clk 0:04:24.6]} 12. Ra3 {[%clk 0:04:07.2]} 12...
Nge7 {[%clk 0:04:21.4]} 13. Rb3 {[%clk 0:04:05.4]} 13... Qa5 {[%clk 0:04:17.5]}
14. Bd2 {[%clk 0:04:02.9]} 14... Qb6 {[%clk 0:04:15.9]} 15. a5 {[%clk
0:03:38.8]} 15... Qxb5 {[%clk 0:03:34.9]} 16. Rxb5 {[%clk 0:03:36]} 16... Nd4
{[%clk 0:03:33.9]} 17. Nxd4 {[%clk 0:03:33.2]} 17... exd4 {[%clk 0:03:29.8]} 18.
Rxb7 {[%clk 0:03:30.8]} 18... O-O {[%clk 0:03:27.4]} 19. Rxc7 {[%clk 0:03:28.8]}
19... Rfd8 {[%clk 0:03:19.9]} 20. Rb7 {[%clk 0:03:20.6]} 20... Nd5 {[%clk
0:03:16.2]} 21. Qf3 {[%clk 0:03:11.3]} 21... f5 {[%clk 0:03:10.8]} 22. Nc5
{[%clk 0:03:08.3]} 22... Bc6 {[%clk 0:03:01.2]} 23. Rxg7+ {[%clk 0:03:04.9]}
23... Kxg7 {[%clk 0:02:55.3]} 24. Qg3 {[%clk 0:03:00.6]} 24... Nf6 {[%clk
0:02:44.4]} 25. Ne6+ {[%clk 0:02:58]} 25... Kg8 {[%clk 0:02:36.3]} 26. Nxd8
{[%clk 0:02:57.9]} 26... Rxd8 {[%clk 0:02:32.4]} 27. Qe5 {[%clk 0:02:49.1]}
27... Kg7 {[%clk 0:02:24.8]} 28. Qe7+ {[%clk 0:02:44.6]} 28... Kg8 {[%clk
0:02:11]} 29. Qxd8+ {[%clk 0:02:42.7]} 29... Be8 {[%clk 0:02:06.6]} 30. Rxe8+
{[%clk 0:02:39.4]} 30... Nxe8 {[%clk 0:02:04.6]} 31. Qxe8+ {[%clk 0:02:38.5]}
31... Kg7 {[%clk 0:02:03.6]} 32. Bf4 {[%clk 0:02:34.5]} 32... Kf6 {[%clk
0:02:02.1]} 33. Qd8+ {[%clk 0:02:29.8]} 33... Kg7 {[%clk 0:02:00.2]} 34. Qxd4+
{[%clk 0:02:29.2]} 34... Kg8 {[%clk 0:01:57.2]} 35. Qd7 {[%clk 0:02:26.9]} 35...
a6 {[%clk 0:01:55]} 36. Be5 {[%clk 0:02:26]} 36... Kf8 {[%clk 0:01:53.2]} 37. c4
{[%clk 0:02:20.1]} 37... h5 {[%clk 0:01:49.7]} 38. c5 {[%clk 0:02:19.2]} 38...
g5 {[%clk 0:01:48]} 39. c6 {[%clk 0:02:18.5]} 39... f4 {[%clk 0:01:46.7]} 40. c7
{[%clk 0:02:17.6]} 1-0

[Event "Live Chess"]
[Site "Chess.com"]
[Date "2023.05.21"]
[Round "-"]
[White "Purple1szed"]
[Black "jagbama"]
[Result "0-1"]
[WhiteElo "1814"]
[BlackElo "1193"]
[TimeControl "300"]
[EndTime "3:36:20 PDT"]
[Termination "jagbama won by checkmate"]

1. e4 {[%clk 0:04:56.9]} 1... e5 {[%clk 0:04:59.3]} 2. Nf3 {[%clk 0:04:55.9]}
2... Nc6 {[%clk 0:04:58.7]} 3. Bc4 {[%clk 0:04:55.4]} 3... Bc5 {[%clk
0:04:56.5]} 4. c3 {[%clk 0:04:54.8]} 4... d6 {[%clk 0:04:53]} 5. d4 {[%clk
0:04:54.1]} 5... exd4 {[%clk 0:04:49.1]} 6. cxd4 {[%clk 0:04:54]} 6... Bb4+
{[%clk 0:04:47.2]} 7. Bd2 {[%clk 0:04:49]} 7... Bg4 {[%clk 0:04:43.3]} 8. Bxb4
{[%clk 0:04:45.8]} 8... Nxb4 {[%clk 0:04:42]} 9. Qa4+ {[%clk 0:04:45.3]} 9...
Nc6 {[%clk 0:04:40.3]} 10. d5 {[%clk 0:04:44.6]} 10... a6 {[%clk 0:04:21.2]} 11.
dxc6 {[%clk 0:04:33.7]} 11... b5 {[%clk 0:04:20.2]} 12. Bxb5 {[%clk 0:04:32.9]}
12... axb5 {[%clk 0:04:18.8]} 13. Qxb5 {[%clk 0:04:32.8]} 13... Ne7 {[%clk
0:04:05.5]} 14. Nc3 {[%clk 0:04:26.6]} 14... O-O {[%clk 0:04:02.2]} 15. O-O
{[%clk 0:04:25]} 15... Rb8 {[%clk 0:03:59.3]} 16. Qe2 {[%clk 0:04:22.9]} 16...
d5 {[%clk 0:03:51]} 17. exd5 {[%clk 0:04:15.3]} 17... Nxd5 {[%clk 0:03:50.2]}
18. Nxd5 {[%clk 0:04:11.9]} 18... Qxd5 {[%clk 0:03:49.4]} 19. b3 {[%clk
0:04:03.3]} 19... Qxc6 {[%clk 0:03:30.7]} 20. Ne5 {[%clk 0:03:47.5]} 20... Qxg2+
{[%clk 0:03:20.1]} 21. Kxg2 {[%clk 0:03:43.2]} 21... Bxe2 {[%clk 0:03:19.2]} 22.
Rfe1 {[%clk 0:03:34.7]} 22... Bb5 {[%clk 0:03:09.5]} 23. a4 {[%clk 0:03:29]}
23... Be8 {[%clk 0:02:58.7]} 24. Reb1 {[%clk 0:03:22.3]} 24... f6 {[%clk
0:02:55]} 25. Nd3 {[%clk 0:03:15.6]} 25... Bg6 {[%clk 0:02:53.5]} 26. Rd1 {[%clk
0:03:07.7]} 26... Rxb3 {[%clk 0:02:51.9]} 27. Nc5 {[%clk 0:03:04.6]} 27... Rc3
{[%clk 0:02:37.6]} 28. Ne6 {[%clk 0:02:54.7]} 28... Re8 {[%clk 0:02:23.8]} 29.
Nf4 {[%clk 0:02:42.4]} 29... Bc2 {[%clk 0:02:00.4]} 30. Rdc1 {[%clk 0:02:36.5]}
30... Ra8 {[%clk 0:01:38.2]} 31. Nd5 {[%clk 0:02:26.6]} 31... Be4+ {[%clk
0:01:35.9]} 32. Kf1 {[%clk 0:02:18.5]} 32... Rxc1+ {[%clk 0:01:35]} 33. Rxc1
{[%clk 0:02:18.4]} 33... Bxd5 {[%clk 0:01:33.9]} 34. Rxc7 {[%clk 0:02:18.3]}
34... Rxa4 {[%clk 0:01:32.1]} 35. Rc5 {[%clk 0:02:17.2]} 35... Bc4+ {[%clk
0:01:14.9]} 36. Kg2 {[%clk 0:02:14.1]} 36... Kf7 {[%clk 0:01:12.3]} 37. Rc7+
{[%clk 0:02:12.9]} 37... Kg6 {[%clk 0:01:10.8]} 38. h3 {[%clk 0:02:11.3]} 38...
h5 {[%clk 0:01:09.7]} 39. Rc5 {[%clk 0:02:09.6]} 39... f5 {[%clk 0:01:02.7]} 40.
Rc6+ {[%clk 0:02:08.3]} 40... Kg5 {[%clk 0:01:00.5]} 41. Kg3 {[%clk 0:02:05.7]}
41... h4+ {[%clk 0:00:57.6]} 42. Kg2 {[%clk 0:02:02.2]} 42... Bd5+ {[%clk
0:00:56.5]} 43. Kf1 {[%clk 0:02:01.7]} 43... Bxc6 {[%clk 0:00:55.5]} 44. Ke2
{[%clk 0:02:01.6]} 44... f4 {[%clk 0:00:49.8]} 45. f3 {[%clk 0:01:59.7]} 45...
Ra2+ {[%clk 0:00:47.8]} 46. Kd3 {[%clk 0:01:59.2]} 46... Bxf3 {[%clk 0:00:46.8]}
47. Kd4 {[%clk 0:01:59.1]} 47... Be2 {[%clk 0:00:45.9]} 48. Ke5 {[%clk 0:01:59]}
48... f3 {[%clk 0:00:45.2]} 49. Kd4 {[%clk 0:01:58.8]} 49... f2 {[%clk
0:00:44.5]} 50. Kd5 {[%clk 0:01:58.7]} 50... f1=Q {[%clk 0:00:43.9]} 51. Kd6
{[%clk 0:01:58.6]} 51... Rd2+ {[%clk 0:00:42.4]} 52. Kc7 {[%clk 0:01:57.9]}
52... Qc1+ {[%clk 0:00:41.3]} 53. Kb6 {[%clk 0:01:57.4]} 53... Rb2+ {[%clk
0:00:40.9]} 54. Ka7 {[%clk 0:01:56.9]} 54... Qa1# {[%clk 0:00:40.8]} 0-1

[Event "Live Chess"]
[Site "Chess.com"]
[Date "2023.05.21"]
[Round "-"]
[White "stevochess11"]
[Black "LL220284LL"]
[Result "0-1"]
[WhiteElo "1722"]
[BlackElo "2322"]
[TimeControl "300"]
[EndTime "3:36:21 PDT"]
[Termination "LL220284LL won by resignation"]

1. d4 {[%clk 0:04:56.8]} 1... g6 {[%clk 0:04:59.9]} 2. Nf3 {[%clk 0:04:54.3]}
2... Bg7 {[%clk 0:04:59.5]} 3. Nc3 {[%clk 0:04:40.4]} 3... d6 {[%clk 0:04:58.9]}
4. e4 {[%clk 0:04:38.3]} 4... a6 {[%clk 0:04:58.4]} 5. Be3 {[%clk 0:04:36.2]}
5... b5 {[%clk 0:04:57.9]} 6. Bd3 {[%clk 0:04:34.2]} 6... Bb7 {[%clk 0:04:57.3]}
7. Ne2 {[%clk 0:04:32.6]} 7... Nd7 {[%clk 0:04:56.2]} 8. c3 {[%clk 0:04:31.5]}
8... c5 {[%clk 0:04:54.9]} 9. Ng3 {[%clk 0:04:26.3]} 9... Ngf6 {[%clk
0:04:53.4]} 10. O-O {[%clk 0:04:24.6]} 10... O-O {[%clk 0:04:50.3]} 11. Qd2
{[%clk 0:04:12.2]} 11... Re8 {[%clk 0:04:46.7]} 12. Bh6 {[%clk 0:04:08.6]} 12...
Bh8 {[%clk 0:04:45.6]} 13. Qg5 {[%clk 0:03:56.9]} 13... e5 {[%clk 0:04:35.6]}
14. d5 {[%clk 0:03:54.9]} 14... c4 {[%clk 0:04:33.3]} 15. Bc2 {[%clk 0:03:53]}
15... Nc5 {[%clk 0:04:30.5]} 16. Qh4 {[%clk 0:03:50]} 16... Nfd7 {[%clk
0:04:26.9]} 17. Ng5 {[%clk 0:03:45.2]} 17... Bf6 {[%clk 0:04:20.3]} 18. f4
{[%clk 0:03:19.9]} 18... Bxg5 {[%clk 0:04:10.5]} 19. Bxg5 {[%clk 0:03:18.3]}
19... f6 {[%clk 0:04:09.6]} 20. Bh6 {[%clk 0:03:14.2]} 20... Qe7 {[%clk
0:04:04]} 21. f5 {[%clk 0:03:07.8]} 21... g5 {[%clk 0:04:01.9]} 22. Qh5 {[%clk
0:02:54.2]} 22... Qf7 {[%clk 0:03:59.3]} 23. Bd1 {[%clk 0:02:52.9]} 23... Rec8
{[%clk 0:03:50.5]} 24. h4 {[%clk 0:02:36.7]} 24... Qxh5 {[%clk 0:03:45.2]} 25.
Nxh5 {[%clk 0:02:28.4]} 25... gxh4 {[%clk 0:03:30.3]} 26. Rf3 {[%clk 0:02:24.4]}
26... Nxe4 {[%clk 0:03:27.4]} 27. Rh3 {[%clk 0:02:19.3]} 27... Bxd5 {[%clk
0:03:23.8]} 28. Rxh4 {[%clk 0:01:52.1]} 28... Kf7 {[%clk 0:03:20.9]} 29. Rg4
{[%clk 0:01:45.8]} 29... Rg8 {[%clk 0:03:18.5]} 30. Bf3 {[%clk 0:01:42.2]} 30...
Rxg4 {[%clk 0:03:16.3]} 31. Bxg4 {[%clk 0:01:40.7]} 31... Rg8 {[%clk 0:03:15.9]}
32. Bf3 {[%clk 0:01:39.4]} 32... Nxc3 {[%clk 0:03:11.4]} 33. Bxd5+ {[%clk
0:01:35.5]} 33... Nxd5 {[%clk 0:03:11.3]} 34. Rd1 {[%clk 0:01:34.1]} 34... N7b6
{[%clk 0:03:09.3]} 35. Ng7 {[%clk 0:01:22.3]} 35... Rxg7 {[%clk 0:03:06.4]} 36.
Bxg7 {[%clk 0:01:21]} 36... Kxg7 {[%clk 0:03:05.9]} 37. Kf2 {[%clk 0:01:19.8]}
37... Kf7 {[%clk 0:03:05]} 38. g4 {[%clk 0:01:17.3]} 38... Ke7 {[%clk
0:03:02.9]} 39. Kf3 {[%clk 0:01:15]} 39... Nf4 {[%clk 0:03:01.6]} 40. Rh1 {[%clk
0:01:13.2]} 40... d5 {[%clk 0:02:59.6]} 41. Rxh7+ {[%clk 0:00:57.1]} 41... Kd8
{[%clk 0:02:56.8]} 42. Rf7 {[%clk 0:00:51.2]} 42... d4 {[%clk 0:02:54.9]} 43.
Rxf6 {[%clk 0:00:50.1]} 43... Nbd5 {[%clk 0:02:52.8]} 44. Rd6+ {[%clk
0:00:48.5]} 44... Ke7 {[%clk 0:02:50.5]} 45. Re6+ {[%clk 0:00:46.7]} 45... Nxe6
{[%clk 0:02:49.3]} 46. fxe6 {[%clk 0:00:45.5]} 46... Kxe6 {[%clk 0:02:49.2]} 47.
Ke4 {[%clk 0:00:44.7]} 47... Nf6+ {[%clk 0:02:48.1]} 0-1

[Event "Live Chess"]
[Site "Chess.com"]
[Date "2023.05.21"]
[Round "-"]
[White "Vitalii18a"]
[Black "NAZRIZ1977"]
[Result "0-1"]
[WhiteElo "1115"]
[BlackElo "1955"]
[TimeControl "300"]
[EndTime "3:36:42 PDT"]
[Termination "NAZRIZ1977 won on time"]

1. e4 {[%clk 0:04:57.7]} 1... c5 {[%clk 0:04:59.1]} 2. Nf3 {[%clk 0:04:56.9]}
2... d6 {[%clk 0:04:57.8]} 3. c3 {[%clk 0:04:55.9]} 3... Nf6 {[%clk 0:04:56.8]}
4. Bd3 {[%clk 0:04:54.2]} 4... Bg4 {[%clk 0:04:55.8]} 5. Bc2 {[%clk 0:04:52]}
5... Nc6 {[%clk 0:04:55.3]} 6. h3 {[%clk 0:04:48.2]} 6... Bxf3 {[%clk
0:04:54.3]} 7. Qxf3 {[%clk 0:04:47]} 7... g6 {[%clk 0:04:53.1]} 8. O-O {[%clk
0:04:41.3]} 8... Bg7 {[%clk 0:04:52.3]} 9. Re1 {[%clk 0:04:40.2]} 9... O-O
{[%clk 0:04:51.3]} 10. d4 {[%clk 0:04:38.4]} 10... cxd4 {[%clk 0:04:50.1]} 11.
cxd4 {[%clk 0:04:37.4]} 11... Nxd4 {[%clk 0:04:50]} 12. Qd1 {[%clk 0:04:30.1]}
12... Nxc2 {[%clk 0:04:47.1]} 13. Qxc2 {[%clk 0:04:29.1]} 13... Rc8 {[%clk
0:04:46]} 14. Qd1 {[%clk 0:04:23.2]} 14... Qa5 {[%clk 0:04:43.2]} 15. Nc3 {[%clk
0:04:22.2]} 15... b5 {[%clk 0:04:39.6]} 16. Bd2 {[%clk 0:04:20.1]} 16... Qb6
{[%clk 0:04:37.3]} 17. Nd5 {[%clk 0:04:16.7]} 17... Nxd5 {[%clk 0:04:34.1]} 18.
exd5 {[%clk 0:04:13.3]} 18... Bxb2 {[%clk 0:04:34]} 19. Be3 {[%clk 0:04:11.8]}
19... Qc7 {[%clk 0:04:29.5]} 20. Rb1 {[%clk 0:04:09.9]} 20... Bc3 {[%clk
0:04:27.4]} 21. Re2 {[%clk 0:04:05.4]} 21... b4 {[%clk 0:04:26.8]} 22. Bd4
{[%clk 0:03:55.9]} 22... Bxd4 {[%clk 0:04:20.9]} 23. Qxd4 {[%clk 0:03:53.5]}
23... a5 {[%clk 0:04:20.8]} 24. Qe3 {[%clk 0:03:39.7]} 24... Rfe8 {[%clk
0:04:17.9]} 25. Ree1 {[%clk 0:03:31.1]} 25... Qc4 {[%clk 0:04:09.5]} 26. Rb2
{[%clk 0:03:17.5]} 26... Qxd5 {[%clk 0:04:06.1]} 27. Qa7 {[%clk 0:03:06.2]}
27... e5 {[%clk 0:03:49.7]} 28. Rb3 {[%clk 0:02:52.4]} 28... Qc5 {[%clk
0:03:39.5]} 29. Qd7 {[%clk 0:02:45.9]} 29... a4 {[%clk 0:03:30.7]} 30. Rf3
{[%clk 0:02:39.7]} 30... Rf8 {[%clk 0:03:24.4]} 31. Ree3 {[%clk 0:02:14.6]}
31... Qc6 {[%clk 0:03:05.5]} 32. Qa7 {[%clk 0:02:03.5]} 32... Ra8 {[%clk
0:02:51.1]} 33. Qe7 {[%clk 0:01:57.7]} 33... b3 {[%clk 0:02:41.3]} 34. axb3
{[%clk 0:01:55.1]} 34... a3 {[%clk 0:02:40.6]} 35. Rf6 {[%clk 0:01:49.9]} 35...
a2 {[%clk 0:02:33.4]} 36. Rxd6 {[%clk 0:01:10.3]} 36... a1=Q+ {[%clk 0:02:29.5]}
37. Kh2 {[%clk 0:01:07.5]} 37... Qcc1 {[%clk 0:02:26.1]} 38. Rf3 {[%clk
0:00:57.4]} 38... Qh1+ {[%clk 0:02:22.2]} 39. Kg3 {[%clk 0:00:56.1]} 39... Qa7
{[%clk 0:02:09.3]} 40. Rd7 {[%clk 0:00:48.2]} 40... Qxd7 {[%clk 0:02:08.1]} 41.
Qxd7 {[%clk 0:00:46.7]} 41... Qa1 {[%clk 0:02:04.1]} 42. h4 {[%clk 0:00:29.7]}
42... Qd4 {[%clk 0:01:51.9]} 43. Qe7 {[%clk 0:00:19.3]} 43... Rae8 {[%clk
0:01:47.2]} 44. Qg5 {[%clk 0:00:18.3]} 44... h5 {[%clk 0:01:41.9]} 45. Kh3
{[%clk 0:00:15.2]} 45... Qg4+ {[%clk 0:01:40.6]} 46. Qxg4 {[%clk 0:00:12.7]}
46... hxg4+ {[%clk 0:01:39.3]} 47. Kxg4 {[%clk 0:00:11.2]} 47... Kg7 {[%clk
0:01:39.2]} 48. Re3 {[%clk 0:00:10.2]} 48... f5+ {[%clk 0:01:39.1]} 49. Kg5
{[%clk 0:00:08.8]} 49... f4 {[%clk 0:01:37.7]} 50. Rc3 {[%clk 0:00:07.2]} 50...
Rf5+ {[%clk 0:01:37.6]} 51. Kg4 {[%clk 0:00:05.7]} 51... Rf7 {[%clk 0:01:34.5]}
52. b4 {[%clk 0:00:04.6]} 52... Ree7 {[%clk 0:01:34.3]} 53. Rb3 {[%clk
0:00:03.8]} 53... Rb7 {[%clk 0:01:33.1]} 54. b5 {[%clk 0:00:02.9]} 54... e4
{[%clk 0:01:27.6]} 0-1

[Event "Live Chess"]
[Site "Chess.com"]
[Date "2023.05.21"]
[Round "-"]
[White "nigelst"]
[Black "JohanKjeldahl"]
[Result "1/2-1/2"]
[WhiteElo "1712"]
[BlackElo "1886"]
[TimeControl "300"]
[EndTime "3:36:47 PDT"]
[Termination "Game drawn by agreement"]

1. e4 {[%clk 0:04:57.5]} 1... c5 {[%clk 0:04:53.9]} 2. Nf3 {[%clk 0:04:38.7]}
2... e6 {[%clk 0:04:51.1]} 3. c3 {[%clk 0:04:37.4]} 3... Nc6 {[%clk 0:04:46.5]}
4. d4 {[%clk 0:04:36.5]} 4... cxd4 {[%clk 0:04:45.4]} 5. cxd4 {[%clk 0:04:35.7]}
5... d5 {[%clk 0:04:44.6]} 6. exd5 {[%clk 0:04:33.4]} 6... Qxd5 {[%clk
0:04:42.8]} 7. Nc3 {[%clk 0:04:32.7]} 7... Bb4 {[%clk 0:04:42]} 8. Bd2 {[%clk
0:04:29.9]} 8... Qa5 {[%clk 0:04:40.5]} 9. a3 {[%clk 0:04:21]} 9... Bxc3 {[%clk
0:04:38.3]} 10. Bxc3 {[%clk 0:04:19.8]} 10... Qh5 {[%clk 0:04:37.9]} 11. Ne5
{[%clk 0:04:11.4]} 11... Qxd1+ {[%clk 0:04:34.6]} 12. Rxd1 {[%clk 0:04:08.9]}
12... Nxe5 {[%clk 0:04:31.5]} 13. dxe5 {[%clk 0:04:07.6]} 13... Bd7 {[%clk
0:04:30]} 14. Bd3 {[%clk 0:03:59.3]} 14... Ne7 {[%clk 0:04:28.3]} 15. O-O {[%clk
0:03:56.1]} 15... Nd5 {[%clk 0:04:26.4]} 16. Be4 {[%clk 0:03:49.5]} 16... Bc6
{[%clk 0:04:24]} 17. Bxd5 {[%clk 0:03:48.3]} 17... Bxd5 {[%clk 0:04:22.2]} 18.
Bb4 {[%clk 0:03:39.7]} 18... Kd7 {[%clk 0:04:20.4]} 19. Rc1 {[%clk 0:03:34.5]}
19... Rhc8 {[%clk 0:04:19]} 20. f3 {[%clk 0:03:30.3]} 20... Rxc1 {[%clk
0:04:15.4]} 21. Rxc1 {[%clk 0:03:29]} 21... Rc8 {[%clk 0:04:14.8]} 22. Rxc8
{[%clk 0:03:26.3]} 22... Kxc8 {[%clk 0:04:12.9]} 1/2-1/2

[Event "Live Chess"]
[Site "Chess.com"]
[Date "2023.05.21"]
[Round "-"]
[White "ameetghasi100"]
[Black "Brooms1989"]
[Result "1-0"]
[WhiteElo "2615"]
[BlackElo "1132"]
[TimeControl "300"]
[EndTime "3:36:53 PDT"]
[Termination "ameetghasi100 won by checkmate"]

1. d4 {[%clk 0:04:57.1]} 1... Nf6 {[%clk 0:04:56.2]} 2. c4 {[%clk 0:04:57]} 2...
g6 {[%clk 0:04:54.9]} 3. Nc3 {[%clk 0:04:56.9]} 3... Bg7 {[%clk 0:04:53.9]} 4.
e3 {[%clk 0:04:56.8]} 4... O-O {[%clk 0:04:51.3]} 5. h4 {[%clk 0:04:56.7]} 5...
h5 {[%clk 0:04:49.4]} 6. Nf3 {[%clk 0:04:55.3]} 6... d6 {[%clk 0:04:47.5]} 7.
Ng5 {[%clk 0:04:55.2]} 7... Nbd7 {[%clk 0:04:41.7]} 8. Be2 {[%clk 0:04:53.8]}
8... b6 {[%clk 0:04:34.3]} 9. b3 {[%clk 0:04:51.3]} 9... Bb7 {[%clk 0:04:33.2]}
10. d5 {[%clk 0:04:50.2]} 10... c6 {[%clk 0:04:30.8]} 11. dxc6 {[%clk 0:04:48]}
11... Bxc6 {[%clk 0:04:30.7]} 12. O-O {[%clk 0:04:46.6]} 12... e5 {[%clk
0:04:22.6]} 13. Ba3 {[%clk 0:04:40.5]} 13... Ne8 {[%clk 0:04:15]} 14. Nce4
{[%clk 0:04:35.3]} 14... Bxe4 {[%clk 0:04:02.9]} 15. Nxe4 {[%clk 0:04:32.4]}
15... Qxh4 {[%clk 0:04:01.2]} 16. Nxd6 {[%clk 0:04:30.4]} 16... Nxd6 {[%clk
0:03:58.7]} 17. Qxd6 {[%clk 0:04:30.3]} 17... Rfd8 {[%clk 0:03:43]} 18. Qd2
{[%clk 0:04:14.9]} 18... Nf6 {[%clk 0:03:26.1]} 19. Qc2 {[%clk 0:04:12.4]} 19...
Rd7 {[%clk 0:03:12]} 20. Rad1 {[%clk 0:04:10.6]} 20... Rad8 {[%clk 0:03:10.4]}
21. Rxd7 {[%clk 0:04:04.5]} 21... Rxd7 {[%clk 0:03:09.6]} 22. Rd1 {[%clk
0:04:01.1]} 22... Rxd1+ {[%clk 0:03:06.1]} 23. Qxd1 {[%clk 0:04:01]} 23... Ng4
{[%clk 0:03:02.5]} 24. Bxg4 {[%clk 0:03:56.9]} 24... hxg4 {[%clk 0:02:59.5]} 25.
g3 {[%clk 0:03:52.6]} 25... Qh3 {[%clk 0:02:39.9]} 26. Qd8+ {[%clk 0:03:48.5]}
26... Kh7 {[%clk 0:02:32]} 27. Qd5 {[%clk 0:03:45.7]} 27... f5 {[%clk
0:02:23.3]} 28. Qf7 {[%clk 0:03:31.5]} 28... f4 {[%clk 0:02:16]} 29. exf4 {[%clk
0:03:26.9]} 29... exf4 {[%clk 0:02:15.1]} 30. Bf8 {[%clk 0:03:26.4]} 30... Qh6
{[%clk 0:02:09.6]} 31. gxf4 {[%clk 0:03:21.4]} 31... Kh8 {[%clk 0:01:56.4]} 32.
Bxg7+ {[%clk 0:03:19.2]} 32... Qxg7 {[%clk 0:01:55.4]} 33. Qxg7+ {[%clk
0:03:18.7]} 33... Kxg7 {[%clk 0:01:55.3]} 34. Kg2 {[%clk 0:03:17]} 34... Kf6
{[%clk 0:01:54.5]} 35. Kg3 {[%clk 0:03:16.4]} 35... Kf5 {[%clk 0:01:54]} 36. b4
{[%clk 0:03:15.8]} 36... g5 {[%clk 0:01:48.5]} 37. fxg5 {[%clk 0:03:11.5]} 37...
Kxg5 {[%clk 0:01:48.4]} 38. c5 {[%clk 0:03:10.3]} 38... bxc5 {[%clk 0:01:44.2]}
39. bxc5 {[%clk 0:03:10.2]} 39... Kf6 {[%clk 0:01:43.5]} 40. Kxg4 {[%clk
0:03:07.4]} 40... Ke7 {[%clk 0:01:42.9]} 41. f4 {[%clk 0:03:07.1]} 41... Kd7
{[%clk 0:01:39.1]} 42. f5 {[%clk 0:03:07]} 42... Kc6 {[%clk 0:01:38]} 43. f6
{[%clk 0:03:06.6]} 43... Kxc5 {[%clk 0:01:37.7]} 44. f7 {[%clk 0:03:06.2]} 44...
Kd6 {[%clk 0:01:37.6]} 45. f8=Q+ {[%clk 0:03:05.1]} 45... Kc6 {[%clk 0:01:37]}
46. Qa3 {[%clk 0:03:04.3]} 46... Kb7 {[%clk 0:01:35.8]} 47. Kf4 {[%clk
0:03:03.9]} 47... a6 {[%clk 0:01:33.9]} 48. Ke5 {[%clk 0:03:03.8]} 48... Ka7
{[%clk 0:01:33.2]} 49. Qd6 {[%clk 0:03:01.1]} 49... Kb7 {[%clk 0:01:29.7]} 50.
Kd5 {[%clk 0:03:01]} 50... Ka7 {[%clk 0:01:28.9]} 51. Kc5 {[%clk 0:03:00.9]}
51... Kb7 {[%clk 0:01:28.3]} 52. Qd7+ {[%clk 0:03:00.1]} 52... Ka8 {[%clk
0:01:27.1]} 53. Kb6 {[%clk 0:03:00]} 53... Kb8 {[%clk 0:01:25.1]} 54. Qe8#
{[%clk 0:02:59.9]} 1-0

[Event "Live Chess"]
[Site "Chess.com"]
[Date "2023.05.21"]
[Round "-"]
[White "Bunny55"]
[Black "Outspanner"]
[Result "1-0"]
[WhiteElo "969"]
[BlackElo "1453"]
[TimeControl "300"]
[EndTime "3:37:20 PDT"]
[Termination "Bunny55 won on time"]

1. e4 {[%clk 0:04:55.9]} 1... d6 {[%clk 0:04:58.7]} 2. d4 {[%clk 0:04:54]} 2...
Nf6 {[%clk 0:04:58.4]} 3. Nc3 {[%clk 0:04:51.4]} 3... Nbd7 {[%clk 0:04:58.1]} 4.
Be3 {[%clk 0:04:50]} 4... e5 {[%clk 0:04:56]} 5. d5 {[%clk 0:04:46.3]} 5... c6
{[%clk 0:04:49.8]} 6. Nf3 {[%clk 0:04:43]} 6... Ng4 {[%clk 0:04:34.2]} 7. h3
{[%clk 0:04:40.6]} 7... Nxe3 {[%clk 0:04:32.8]} 8. fxe3 {[%clk 0:04:38]} 8...
Be7 {[%clk 0:04:25.9]} 9. Qd2 {[%clk 0:04:34.2]} 9... Nf6 {[%clk 0:04:17.7]} 10.
O-O-O {[%clk 0:04:31.5]} 10... c5 {[%clk 0:04:11.5]} 11. g4 {[%clk 0:04:29.8]}
11... a6 {[%clk 0:04:08.8]} 12. g5 {[%clk 0:04:28.9]} 12... Nd7 {[%clk
0:04:07.3]} 13. h4 {[%clk 0:04:26.7]} 13... b5 {[%clk 0:04:05.5]} 14. Kb1 {[%clk
0:04:25.3]} 14... b4 {[%clk 0:03:18.4]} 15. Ne2 {[%clk 0:04:20.5]} 15... a5
{[%clk 0:03:07.6]} 16. Ng3 {[%clk 0:04:07.9]} 16... Nb6 {[%clk 0:02:53.3]} 17.
Bh3 {[%clk 0:04:05.5]} 17... Bxh3 {[%clk 0:02:47.8]} 18. Rxh3 {[%clk 0:04:03.5]}
18... c4 {[%clk 0:02:47.5]} 19. Nf5 {[%clk 0:04:02]} 19... Rg8 {[%clk
0:02:40.5]} 20. h5 {[%clk 0:03:45.2]} 20... g6 {[%clk 0:01:52.2]} 21. hxg6
{[%clk 0:03:40.7]} 21... hxg6 {[%clk 0:01:50.2]} 22. Nxe7 {[%clk 0:03:36.6]}
22... Qxe7 {[%clk 0:01:47.6]} 23. Rh7 {[%clk 0:03:32.9]} 23... Kd7 {[%clk
0:01:42.4]} 24. Qg2 {[%clk 0:03:20.4]} 24... b3 {[%clk 0:01:23.8]} 25. Qg4+
{[%clk 0:03:15.6]} 25... Kc7 {[%clk 0:01:21.5]} 26. cxb3 {[%clk 0:03:05.3]}
26... cxb3 {[%clk 0:01:17]} 27. Rc1+ {[%clk 0:03:03.4]} 27... Kb7 {[%clk
0:01:16]} 28. a3 {[%clk 0:02:22.7]} 28... Ra6 {[%clk 0:01:15.9]} 29. Qg1 {[%clk
0:02:11.3]} 29... Raa8 {[%clk 0:01:09]} 30. Qd1 {[%clk 0:02:00.6]} 30... Rac8
{[%clk 0:01:08.1]} 31. Rxc8 {[%clk 0:01:53.7]} 31... Rxc8 {[%clk 0:01:06]} 32.
Qxb3 {[%clk 0:01:51.6]} 32... Qc7 {[%clk 0:01:04.9]} 33. Nd2 {[%clk 0:01:44.8]}
33... Qc1+ {[%clk 0:00:57.7]} 34. Ka2 {[%clk 0:01:37.7]} 34... Qxd2 {[%clk
0:00:55.4]} 35. Rxf7+ {[%clk 0:01:35.3]} 35... Rc7 {[%clk 0:00:55.1]} 36. Rxc7+
{[%clk 0:01:28.3]} 36... Kxc7 {[%clk 0:00:54]} 37. Qb5 {[%clk 0:01:23.7]} 37...
Qc2 {[%clk 0:00:46.5]} 38. Qxa5 {[%clk 0:01:14.9]} 38... Kb7 {[%clk 0:00:28.5]}
39. Qb5 {[%clk 0:01:05.9]} 39... Qc4+ {[%clk 0:00:27.4]} 40. Qxc4 {[%clk
0:01:03.9]} 40... Nxc4 {[%clk 0:00:26.5]} 41. Kb3 {[%clk 0:01:02.3]} 41... Nxe3
{[%clk 0:00:26.1]} 42. Kc3 {[%clk 0:00:58.7]} 42... Kb6 {[%clk 0:00:24.4]} 43.
b4 {[%clk 0:00:57.1]} 43... Ng4 {[%clk 0:00:21.3]} 44. Kc4 {[%clk 0:00:52.1]}
44... Nf2 {[%clk 0:00:19.5]} 45. a4 {[%clk 0:00:50.4]} 45... Nxe4 {[%clk
0:00:18.4]} 46. a5+ {[%clk 0:00:49.1]} 46... Kb7 {[%clk 0:00:17]} 47. Kb5 {[%clk
0:00:45.7]} 47... Nc3+ {[%clk 0:00:15.9]} 48. Kc4 {[%clk 0:00:43.3]} 48... Ne4
{[%clk 0:00:13.6]} 49. b5 {[%clk 0:00:40]} 49... Nd2+ {[%clk 0:00:11.1]} 50. Kc3
{[%clk 0:00:38.2]} 50... Ne4+ {[%clk 0:00:09.9]} 51. Kd3 {[%clk 0:00:36.7]}
51... Nc5+ {[%clk 0:00:09.2]} 52. Kc4 {[%clk 0:00:35.2]} 52... Ne4 {[%clk
0:00:08.4]} 53. b6 {[%clk 0:00:31.6]} 53... Ka6 {[%clk 0:00:07.1]} 54. b7 {[%clk
0:00:28.5]} 54... Kxb7 {[%clk 0:00:05.5]} 55. Kb5 {[%clk 0:00:28.1]} 55... Nc3+
{[%clk 0:00:02.2]} 56. Kb4 {[%clk 0:00:26.9]} 56... Nxd5+ {[%clk 0:00:00.6]} 57.
Kb5 {[%clk 0:00:26.2]} 1-0